bitfinex-derivatives/quotes_SOLF0:USTF0_20250124
["timestamp","ask_amount","ask_price","bid_price","bid_amount"]
[1737725796960,8.85234028,265.81,265.63,11.31503076]
[1737725797163,3.763,265.76,265.63,11.31503076]
[1737725797366,8.82773076,265.77,265.64,3.7646]
[1737725798064,0.02697388,265.73,265.68,0.02808893]
[1737725798456,2.68697388,265.73,265.68,0.02808893]
[1737725799166,3.7636,265.72,265.68,0.02808893]
[1737725799563,2.68697388,265.73,265.68,0.02808893]
[1737725801665,0.02697388,265.73,265.68,0.02808893]
[1737725802170,0.02697388,265.73,265.69,3.7638]
[1737725802369,0.02697388,265.73,265.68,0.02808893]
[1737725803565,0.02697388,265.73,265.71,3.7635]
[1737725806370,0.02697388,265.73,265.68,0.02808893]
[1737725806669,0.02697388,265.73,265.72,3.7635]
[1737725815979,0.02697388,265.73,265.68,0.02808893]
[1737725816476,0.02697388,265.73,265.71,3.7636]
[1737725818380,0.02697388,265.73,265.69,3.7638]
[1737725818680,0.02697388,265.73,265.68,0.02808893]
[1737725819778,3.7639,265.69,265.68,0.02808893]
[1737725821680,3.7638,265.7,265.68,0.02808893]
[1737725822181,0.02697388,265.73,265.68,0.02808893]
[1737725822383,3.7639,265.69,265.68,0.02808893]
[1737725823981,1.2822,265.72,265.59,109.26196689]
[1737725824182,1.2822,265.72,265.55,8.82773076]
[1737725824782,3.7645,265.65,265.59,3.7653]
[1737725824980,0.02436679,265.67,265.61,0.02428489]
[1737725825184,3.7649,265.62,265.61,0.02428489]
[1737725825379,2.62,265.66,265.61,0.02428489]
[1737725825785,3.7646,265.65,265.61,0.02428489]
[1737725826188,2.62,265.66,265.61,0.02428489]
[1737725826386,3.7645,265.65,265.61,0.02428489]
[1737725827084,2.62,265.66,265.61,0.02428489]
[1737725827382,3.7648,265.63,265.61,0.02428489]
[1737725828185,2.62,265.66,265.61,0.02428489]
[1737725828392,3.7649,265.62,265.61,0.02428489]
[1737725828786,0.02436679,265.67,265.61,0.02428489]
[1737725830187,3.78856679,265.67,265.62,3.7648]
[1737725830688,0.02436679,265.67,265.61,0.02428489]
[1737725830988,0.02436679,265.67,265.63,3.7648]
[1737725831792,0.02436679,265.67,265.61,0.02428489]
[1737725831982,0.02436679,265.67,265.62,3.7649]
[1737725832980,3.78866679,265.67,265.61,0.02428489]
[1737725833884,0.02436679,265.67,265.61,0.02428489]
[1737725834185,0.02436679,265.67,265.66,3.7643]
[1737725835186,2.62,265.76,265.64,8.82773076]
[1737725835388,2.62,265.76,265.68,8.82773076]
[1737725835691,3.7626,265.79,265.74,3.7631]
[1737725835894,2.62,265.86,265.68,8.82773076]
[1737725836084,2.62,265.86,265.72,8.82773076]
[1737725836286,0.02520313,265.8,265.76,3.7628]
[1737725836487,0.02520313,265.8,265.74,0.02440276]
[1737725839085,0.02520313,265.8,265.78,3.7626]
[1737725841893,0.02520313,265.8,265.76,8.82773076]
[1737725842093,0.02520313,265.8,265.79,3.7625]
[1737725842689,10.12623076,265.96,265.76,8.82773076]
[1737725842895,2.62,265.93,265.81,8.82773076]
[1737725843398,10.12623076,265.96,265.81,8.82773076]
[1737725843592,8.82773076,266.0,265.81,8.82773076]
[1737725843792,0.02808627,265.91,265.86,0.02699221]
[1737725844593,3.78888627,265.91,265.86,0.02699221]
[1737725844990,0.02808627,265.91,265.86,0.02699221]
[1737725845194,0.02808627,265.91,265.86,3.78839221]
[1737725846392,0.02808627,265.91,265.86,0.02699221]
[1737725846697,0.02808627,265.91,265.88,3.7611]
[1737725846897,0.02808627,265.91,265.86,0.02699221]
[1737725847498,0.02808627,265.91,265.89,3.761]
[1737725847895,0.02808627,265.91,265.86,0.02699221]
[1737725848099,0.02808627,265.91,265.88,3.7612]
[1737725848399,0.02808627,265.91,265.86,0.02699221]
[1737725848895,0.02808627,265.91,265.9,3.7609]
[1737725849999,0.02808627,265.91,265.86,1.21349221]
[1737725850299,0.02808627,265.91,265.86,4.97489221]
[1737725851299,0.02808627,265.91,265.87,3.7613]
[1737725852297,0.02808627,265.91,265.9,3.7609]
[1737725854799,8.82773076,266.08,265.89,8.82773076]
[1737725855000,8.82773076,266.08,265.94,8.82773076]
[1737725855196,1.2436,266.11,265.94,8.82773076]
[1737725855401,3.7587,266.06,266.0,3.7595]
[1737725855596,1.2436,266.11,265.98,8.82773076]
[1737725855800,8.82773076,266.16,266.06,3.7587]
[1737725855801,3.7579,266.12,266.06,3.7587]
[1737725856002,11.44773076,266.16,266.06,3.7587]
[1737725856194,0.02771706,266.07,266.06,3.7587]
[1737725856393,11.44773076,266.16,266.08,0.02546108]
[1737725856600,0.02510397,266.09,266.08,0.02546108]
[1737725856797,7.53528535,266.17,266.08,0.02546108]
[1737725856998,0.02765469,266.11,266.08,0.02546108]
[1737725857302,2.62,266.23,266.08,0.02546108]
[1737725857601,2.62,266.23,266.06,118.08969765]
[1737725858502,0.02667893,266.17,266.12,0.02864072]
[1737725860197,3.7578,266.13,266.12,0.02864072]
[1737725860698,8.82773076,266.16,266.01,0.98099072]
[1737725860899,8.82773076,266.12,265.94,8.82773076]
[1737725861102,8.82773076,266.12,265.89,109.26196689]
[1737725861103,8.82773076,266.08,265.9,11.36563076]
[1737725861299,2.66,266.07,265.9,11.36563076]
[1737725861602,3.7594,266.02,265.9,11.36563076]
[1737725862002,0.027448,265.99,265.93,0.02381464]
[1737725862302,0.027448,265.99,265.93,3.78431464]
[1737725863098,0.027448,265.99,265.94,3.7603]
[1737725864705,0.027448,265.99,265.97,3.7599]
[1737725864905,8.82773076,266.16,265.98,8.82773076]
[1737725865105,3.7582,266.1,266.05,3.7588]
[1737725865405,2.66,266.15,266.05,3.7588]
[1737725865597,2.66,266.15,266.02,8.82773076]
[1737725866108,0.02450547,266.11,266.06,0.02890831]
[1737725866303,0.02450547,266.11,266.06,3.78750831]
[1737725866503,0.02450547,266.11,266.06,0.02890831]
[1737725867006,0.02450547,266.11,266.06,3.78750831]
[1737725867207,0.02450547,266.11,266.06,0.02890831]
[1737725869109,3.7584,266.08,266.06,0.02890831]
[1737725869519,0.02450547,266.11,266.06,0.02890831]
[1737725869811,3.7585,266.07,266.06,0.02890831]
[1737725870008,8.85223623,266.11,265.94,8.82773076]
[1737725870310,3.7593,266.02,265.95,3.7601]
[1737725870511,8.82773076,266.11,265.94,8.82773076]
[1737725871005,3.7591,266.03,266.0,0.02675641]
[1737725871405,0.02549358,266.05,266.0,0.02675641]
[1737725871610,3.7592,266.02,266.0,0.02675641]
[1737725872111,3.7594,266.01,266.0,0.02675641]
[1737725875210,0.02549358,266.05,266.0,0.02675641]
[1737725875712,3.7591,266.03,266.0,0.02675641]
[1737725876313,0.02549358,266.05,266.0,0.02675641]
[1737725876512,3.7592,266.02,266.0,0.02675641]
[1737725877010,0.02549358,266.05,266.0,0.02675641]
[1737725877211,3.7594,266.01,266.0,0.02675641]
[1737725880217,8.82773076,266.03,265.91,2.6172]
[1737725880515,3.76,265.97,265.92,3.7606]
[1737725880716,3.76,265.97,265.91,1.3148]
[1737725880916,8.82773076,266.07,265.91,1.3148]
[1737725881114,0.68039356,266.06,265.96,3.7601]
[1737725881319,3.7592,266.03,265.91,1.3148]
[1737725881516,0.02442362,266.04,265.98,0.02409384]
[1737725882410,3.7597,265.99,265.98,0.02409384]
[1737725882611,2.64,266.01,265.85,118.08969765]
[1737725883020,3.7602,265.96,265.87,3.7612]
[1737725883220,1.256,266.0,265.87,3.7612]
[1737725883421,1.256,266.0,265.85,118.08969765]
[1737725883822,0.02542358,265.95,265.9,0.02546565]
[1737725884418,3.7605,265.93,265.9,0.02546565]
[1737725885021,3.7604,265.94,265.9,0.02546565]
[1737725886522,3.7605,265.93,265.9,0.02546565]
[1737725886821,0.02542358,265.95,265.9,0.02546565]
[1737725887821,3.7608,265.91,265.9,0.02546565]
[1737725890922,0.02542358,265.95,265.9,0.02546565]
[1737725892823,3.7607,265.92,265.9,0.02546565]
[1737725893322,3.7604,265.94,265.9,0.02546565]
[1737725893525,0.02542358,265.95,265.9,0.02546565]
[1737725894225,3.7608,265.91,265.9,0.02546565]
[1737725899441,8.85315434,265.95,265.82,3.7621]
[1737725899624,8.82773076,265.95,265.8,4.05613]
[1737725899830,8.82773076,265.91,265.8,0.29393]
[1737725900131,3.7619,265.84,265.8,0.29393]
[1737725900833,3.7622,265.81,265.8,0.29393]
[1737725901229,8.82773076,265.83,265.79,0.02587396]
[1737725901534,8.82773076,265.83,265.65,8.82773076]
[1737725901832,5.6579131,265.77,265.68,3.764]
[1737725902628,0.02634682,265.75,265.68,3.764]
[1737725903025,3.7634,265.73,265.64,8.1892131]
[1737725903833,3.7634,265.73,265.66,3.7643]
[1737725904529,3.7634,265.73,265.65,3.7644]
[1737725904826,3.7634,265.73,265.64,2.5313]
[1737725905031,6.3834,265.73,265.64,2.5313]
[1737725906132,6.3834,265.73,265.66,3.7643]
[1737725907634,6.3834,265.73,265.67,3.7642]
[1737725908233,6.3834,265.73,265.64,2.5313]
[1737725908234,6.3834,265.73,265.66,3.7643]
[1737725908831,6.3834,265.73,265.64,2.5313]
[1737725909037,2.64634682,265.75,265.64,2.5313]
[1737725909936,2.64634682,265.75,265.69,3.7638]
[1737725910236,6.40944682,265.75,265.69,3.7638]
[1737725910937,2.64634682,265.75,265.64,11.37392524]
[1737725911438,0.02634682,265.75,265.72,3.7634]
[1737725911632,0.02634682,265.75,265.64,11.37392524]
[1737725912034,0.02634682,265.75,265.74,3.7632]
[1737725912631,0.02634682,265.75,265.64,11.37392524]
[1737725912932,0.02634682,265.75,265.68,8.84262524]
[1737725913337,0.02634682,265.75,265.74,3.7632]
[1737725916838,3.7624,265.8,265.75,3.763]
[1737725917437,3.7616,265.86,265.77,3.7628]
[1737725917637,2.62,265.88,265.73,1.2567]
[1737725917837,49.38988322,265.89,265.73,1.2567]
[1737725918137,0.02804439,265.83,265.78,0.02698914]
[1737725919140,0.02804439,265.83,265.8,3.7623]
[1737725920142,0.02804439,265.83,265.78,0.02698914]
[1737725920844,0.02804439,265.83,265.79,3.7625]
[1737725921045,0.02804439,265.83,265.78,0.02698914]
[1737725921645,3.7625,265.79,265.78,0.02698914]
[1737725921842,0.02804439,265.83,265.78,0.02698914]
[1737725922339,3.7625,265.79,265.78,0.02698914]
[1737725923035,8.84262524,265.81,265.65,36.67520084]
[1737725923240,3.7634,265.73,265.65,36.67520084]
[1737725923635,8.84262524,265.81,265.65,36.67520084]
[1737725923840,3.7635,265.72,265.66,3.7643]
[1737725924143,0.02754357,265.72,265.66,3.7643]
[1737725924441,0.02754357,265.72,265.65,42.33396257]
[1737725924442,0.02754357,265.72,265.67,3.7642]
[1737725925144,0.02754357,265.72,265.68,3.764]
[1737725925343,0.02754357,265.72,265.68,5.65876173]
[1737725926444,0.02754357,265.72,265.7,3.7637]
[1737725926937,0.02754357,265.72,265.68,9.42276173]
[1737725928641,0.02754357,265.72,265.68,5.65876173]
[1737725928844,0.02754357,265.72,265.69,3.7639]
[1737725929342,0.02754357,265.72,265.68,5.65876173]
[1737725929538,0.02754357,265.72,265.71,3.7636]
[1737725933042,0.02754357,265.72,265.69,3.7638]
[1737725933645,0.02754357,265.72,265.68,5.65876173]
[1737725933946,0.02754357,265.72,265.64,6.93916173]
[1737725934147,5.65876173,265.71,265.61,5.65876173]
[1737725934946,3.7642,265.68,265.61,5.65876173]
[1737725935646,3.7642,265.68,265.63,3.7647]
[1737725935947,2.64754357,265.72,265.56,3.7656]
[1737725935948,5.65876173,265.64,265.56,3.7656]
[1737725936146,5.65876173,265.62,265.55,37.86338288]
[1737725936346,5.65876173,265.62,265.55,36.61488288]
[1737725936547,3.7653,265.59,265.55,35.41648288]
[1737725937045,5.65876173,265.6,265.55,35.41648288]
[1737725937547,5.65876173,265.6,265.52,5.65876173]
[1737725937847,3.7652,265.6,265.49,1.2811]
[1737725938048,8.85055981,265.65,265.49,1.2811]
[1737725938243,0.0274802,265.57,265.49,1.2811]
[1737725938948,0.0274802,265.57,265.56,3.7658]
[1737725939641,2.62,265.66,265.53,1.2118]
[1737725939841,2.62,265.66,265.56,8.85055981]
[1737725940243,3.8703,265.7,265.56,8.85055981]
[1737725940645,0.02734271,265.66,265.6,0.0256308]
[1737725941343,0.02734271,265.66,265.61,3.7649]
[1737725941546,0.02734271,265.66,265.6,0.0256308]
[1737725941948,0.02734271,265.66,265.65,3.7645]
[1737725943843,0.02734271,265.66,265.63,3.7646]
[1737725944652,0.02734271,265.66,265.6,0.0256308]
[1737725945344,3.7646,265.65,265.6,0.0256308]
[1737725947148,3.7646,265.65,265.6,3.7908308]
[1737725947350,0.02734271,265.66,265.6,0.0256308]
[1737725948255,8.85055981,265.65,265.6,0.0256308]
[1737725949355,3.7646,265.65,265.6,0.0256308]
[1737725950055,0.02734271,265.66,265.6,0.0256308]
[1737725951054,0.02734271,265.66,265.61,3.765]
[1737725951255,0.02734271,265.66,265.6,0.0256308]
[1737725952053,0.02734271,265.66,265.62,3.7649]
[1737725952455,0.02734271,265.66,265.6,0.0256308]
[1737725953056,0.02734271,265.66,265.63,3.7647]
[1737725953460,0.02734271,265.66,265.6,0.0256308]
[1737725953662,0.02734271,265.66,265.64,3.7645]
[1737725953852,0.02734271,265.66,265.6,0.0256308]
[1737725954252,0.02734271,265.66,265.65,3.7645]
[1737725955154,12.66355981,265.78,265.72,3.7634]
[1737725955962,11.47055981,265.78,265.72,3.7634]
[1737725956161,6.3828,265.78,265.72,3.7634]
[1737725956463,3.78905319,265.78,265.72,3.79017605]
[1737725957459,0.02625319,265.78,265.74,3.7631]
[1737725957760,0.02625319,265.78,265.72,0.02677605]
[1737725957960,0.02625319,265.78,265.75,3.763]
[1737725959165,0.02625319,265.78,265.76,3.7629]
[1737725959367,0.02625319,265.78,265.72,0.02677605]
[1737725959863,0.02625319,265.78,265.76,3.7628]
[1737725963373,0.02625319,265.78,265.77,3.7628]
[1737725971483,0.02625319,265.78,265.76,3.7629]
[1737725973779,0.02625319,265.78,265.75,5.65470064]
[1737725973984,0.02625319,265.78,265.77,3.7628]
[1737725980084,5.65470064,265.85,265.76,1.2953]
[1737725980289,3.762,265.83,265.8,3.7623]
[1737725981692,0.02710185,265.84,265.82,3.762]
[1737725982587,3.7623,265.81,265.79,0.02438505]
[1737725982792,5.65470064,265.82,265.79,0.02438505]
[1737725983287,3.7624,265.8,265.79,0.02438505]
[1737725983692,5.65470064,265.82,265.79,0.02438505]
[1737725984092,9.41690064,265.82,265.79,0.02438505]
[1737725984685,3.7623,265.81,265.79,0.02438505]
[1737725985694,3.7624,265.8,265.79,0.02438505]
[1737725986091,5.65470064,265.82,265.66,6.90450064]
[1737725986295,5.65470064,265.73,265.66,6.90450064]
[1737725986595,5.65470064,265.73,265.66,1.2498]
[1737725987089,5.65470064,265.73,265.67,3.7642]
[1737725987393,0.02433651,265.72,265.67,3.7887952]
[1737725987795,2.7199422,265.71,265.67,3.7887952]
[1737725988495,2.7199422,265.7,265.67,3.7887952]
[1737725989295,2.7199422,265.69,265.67,3.7887952]
[1737725990190,2.7199422,265.68,265.67,3.7887952]
[1737725990495,2.7199422,265.68,265.67,0.0245952]
[1737725992094,6.4839422,265.68,265.67,0.0245952]
[1737725993597,12.13864284,265.68,265.67,0.0245952]
[1737725994304,8.37464284,265.68,265.54,5.65470064]
[1737725994598,3.7655,265.58,265.53,3.7661]
[1737725995601,3.7655,265.58,265.51,5.65470064]
[1737725995602,6.4855422,265.57,265.54,0.02470393]
[1737725995796,2.7199422,265.57,265.54,0.02470393]
[1737725996200,2.7199422,265.56,265.54,0.02470393]
[1737725996905,3.7659,265.55,265.54,0.02470393]
[1737725997401,6.4858422,265.55,265.54,0.02470393]
[1737725997699,3.7663,265.52,265.45,5.65470064]
[1737725998199,3.7661,265.54,265.48,3.7669]
[1737725998600,3.7661,265.54,265.45,5.65470064]
[1737725998792,2.7199422,265.51,265.48,0.02236018]
[1737725999595,2.7199422,265.5,265.48,0.02236018]
[1737726000302,2.7199422,265.49,265.48,0.02236018]
[1737726000494,2.7199422,265.49,265.48,9.44396082]
[1737726000699,0.02700472,265.54,265.48,5.67706082]
[1737726000994,0.02700472,265.54,265.52,5.65470064]
[1737726001200,5.65470064,265.62,265.52,5.65470064]
[1737726001401,5.65470064,265.59,265.49,5.65470064]
[1737726002300,0.02606776,265.57,265.51,0.02745336]
[1737726003197,3.79176776,265.57,265.52,3.7662]
[1737726003696,5.65470064,265.54,265.51,0.02745336]
[1737726004210,3.7663,265.52,265.42,3.7677]
[1737726004410,5.65470064,265.48,265.42,3.7677]
[1737726005107,3.7671,265.47,265.42,3.7677]
[1737726005707,3.79247697,265.47,265.42,3.78997273]
[1737726007504,0.02537697,265.47,265.42,3.78997273]
[1737726007710,0.02537697,265.47,265.44,3.7674]
[1737726008715,0.02537697,265.47,265.42,0.02227273]
[1737726008716,0.02537697,265.47,265.43,3.7676]
[1737726009326,0.02537697,265.47,265.43,3.7675]
[1737726009612,0.02537697,265.47,265.42,0.02227273]
[1737726011116,0.02537697,265.47,265.44,3.7674]
[1737726012111,0.02537697,265.47,265.42,0.02227273]
[1737726012311,0.02537697,265.47,265.46,3.7672]
[1737726013110,5.65470064,265.58,265.45,5.65470064]
[1737726013311,5.65470064,265.58,265.5,5.65470064]
[1737726013812,2.67197773,265.57,265.55,3.7659]
[1737726014713,2.67197773,265.56,265.55,3.7659]
[1737726015417,2.55527851,265.58,265.57,3.7656]
[1737726019119,0.02889515,265.59,265.57,3.7656]
[1737726020623,0.02889515,265.59,265.58,3.7655]
[1737726033531,3.7638,265.7,265.67,3.7641]
[1737726033829,8.01669843,265.84,265.61,8.8484166]
[1737726034025,2.5425,265.82,265.69,8.8484166]
[1737726034229,3.7624,265.8,265.75,3.763]
[1737726034631,0.02831634,265.8,265.75,3.7883864]
[1737726034832,3.7625,265.79,265.75,3.7883864]
[1737726035336,3.7625,265.79,265.75,0.0253864]
[1737726036834,0.02831634,265.8,265.75,0.0253864]
[1737726037137,0.02831634,265.8,265.76,5.65557222]
[1737726038238,0.02831634,265.8,265.77,3.7627]
[1737726038932,0.02831634,265.8,265.76,5.65557222]
[1737726039337,0.02831634,265.8,265.75,0.0253864]
[1737726039632,5.68388856,265.8,265.75,0.0253864]
[1737726040637,3.7626,265.78,265.75,0.0253864]
[1737726041034,5.68388856,265.8,265.75,0.0253864]
[1737726041332,5.65557222,265.76,265.68,5.65557222]
[1737726041530,5.65557222,265.74,265.66,5.65557222]
[1737726042131,3.7637,265.71,265.67,3.7641]
[1737726043338,0.02689505,265.72,265.67,3.7641]
[1737726044738,3.79039505,265.72,265.67,3.7641]
[1737726047628,0.02689505,265.72,265.66,5.68295544]
[1737726048232,5.65557222,265.71,265.66,0.02738322]
[1737726048735,3.7642,265.67,265.66,0.02738322]
[1737726056049,3.7646,265.65,265.6,5.65557222]
[1737726056547,5.65557222,265.63,265.54,5.65557222]
[1737726057245,0.02482573,265.61,265.56,0.02377523]
[1737726057845,3.7652,265.6,265.56,0.02377523]
[1737726059246,3.7652,265.6,265.56,3.78947523]
[1737726060643,0.02482573,265.61,265.56,0.02377523]
[1737726061745,3.7656,265.58,265.56,0.02377523]
[1737726061945,5.65557222,265.6,265.56,0.02377523]
[1737726062445,5.65557222,265.57,265.48,5.65557222]
[1737726062848,3.7663,265.53,265.48,5.65557222]
[1737726063048,5.65557222,265.57,265.48,5.65557222]
[1737726063547,0.02709321,265.55,265.48,5.65557222]
[1737726063749,3.7662,265.53,265.48,9.42247222]
[1737726063948,0.02709321,265.55,265.51,5.65557222]
[1737726064248,3.6643,265.59,265.53,5.65557222]
[1737726064444,0.02483835,265.56,265.53,9.42157222]
[1737726064645,0.02483835,265.56,265.53,5.65557222]
[1737726065148,0.02483835,265.56,265.54,3.7659]
[1737726065342,0.02483835,265.56,265.53,5.65557222]
[1737726065551,0.02483835,265.56,265.5,5.65557222]
[1737726066147,3.7662,265.53,265.48,3.7668]
[1737726066649,3.7663,265.52,265.48,3.7668]
[1737726066845,3.7663,265.52,265.47,5.65557222]
[1737726067250,3.7665,265.51,265.47,5.65557222]
[1737726067745,3.7665,265.51,265.42,8.85539615]
[1737726067951,3.7667,265.49,265.42,8.85539615]
[1737726068140,3.79084326,265.49,265.42,8.85539615]
[1737726068342,3.79084326,265.49,265.39,146.08423325]
[1737726068343,0.02414326,265.49,265.39,146.08423325]
[1737726068541,0.02414326,265.49,265.39,36.82226636]
[1737726069052,0.02414326,265.49,265.39,40.59036636]
[1737726069451,0.02414326,265.49,265.39,36.82226636]
[1737726070646,3.79094326,265.49,265.39,36.82226636]
[1737726070950,0.02414326,265.49,265.42,8.85539615]
[1737726071251,0.02414326,265.49,265.48,3.7669]
[1737726075356,0.02414326,265.49,265.45,3.7672]
[1737726075955,0.02414326,265.49,265.4,3.7679]
[1737726076656,3.7672,265.46,265.41,3.7678]
[1737726078162,3.7671,265.47,265.41,3.7678]
[1737726078355,0.02414326,265.49,265.41,3.7678]
[1737726078560,0.02414326,265.49,265.4,3.768]
[1737726079161,0.02414326,265.49,265.34,10.14499615]
[1737726079365,8.85539615,265.47,265.34,1.2896]
[1737726079664,8.85539615,265.47,265.29,8.85539615]
[1737726079960,3.841,265.48,265.29,8.85539615]
[1737726079961,8.88051567,265.43,265.29,8.85539615]
[1737726080160,3.7683,265.38,265.32,3.7691]
[1737726080657,0.02504907,265.38,265.25,11.36789615]
[1737726080863,0.02504907,265.38,265.25,2.5125]
[1737726081352,0.02504907,265.38,265.26,3.7699]
[1737726081752,3.769,265.34,265.27,3.7698]
[1737726081953,0.02504907,265.38,265.23,1.2496]
[1737726082357,3.7689,265.34,265.28,3.7697]
[1737726082557,0.02843381,265.33,265.28,3.7697]
[1737726084158,0.02843381,265.33,265.29,3.7694]
[1737726085167,0.02843381,265.33,265.31,3.7692]
[1737726085465,0.02843381,265.33,265.25,8.85539615]
[1737726086066,3.79743381,265.33,265.28,3.7697]
[1737726086366,0.02843381,265.33,265.22,41.21248238]
[1737726086962,3.7692,265.32,265.27,3.7698]
[1737726088670,0.02843381,265.33,265.32,3.7691]
[1737726091071,2.62,265.44,265.31,8.85539615]
[1737726091469,8.85539615,265.44,265.27,8.85539615]
[1737726091769,3.7683,265.39,265.34,3.7688]
[1737726091971,2.62,265.43,265.27,8.85539615]
[1737726092272,0.02756964,265.39,265.34,0.02510825]
[1737726092667,0.02756964,265.39,265.38,3.7683]
[1737726093367,0.02756964,265.39,265.35,3.7686]
[1737726093763,0.02756964,265.39,265.34,0.02510825]
[1737726095473,3.7684,265.37,265.34,0.02510825]
[1737726096573,0.02756964,265.39,265.34,0.02510825]
[1737726098074,3.7683,265.38,265.34,0.02510825]
[1737726101875,3.7685,265.37,265.34,0.02510825]
[1737726102074,0.02756964,265.39,265.34,0.02510825]
[1737726102467,3.7687,265.35,265.34,0.02510825]
[1737726104675,0.02756964,265.39,265.34,0.02510825]
[1737726105190,0.02756964,265.39,265.38,3.7683]
[1737726105480,11.47539615,265.51,265.35,8.85539615]
[1737726105681,11.47539615,265.51,265.42,3.7677]
[1737726106085,3.767,265.47,265.42,3.7677]
[1737726106282,11.47539615,265.51,265.36,1.2843]
[1737726106787,3.7679,265.41,265.32,2.487]
[1737726107189,3.7679,265.41,265.34,0.02563488]
[1737726107486,0.02881261,265.39,265.34,0.02563488]
[1737726108087,0.02881261,265.39,265.35,3.7686]
[1737726108290,0.02881261,265.39,265.34,0.02563488]
[1737726109390,3.7759,265.57,265.35,8.85539615]
[1737726109391,3.767,265.47,265.35,8.85539615]
[1737726109588,8.85539615,265.55,265.36,1.2861]
[1737726109884,2.62,265.54,265.36,1.2861]
[1737726110389,3.767,265.48,265.36,1.2861]
[1737726110588,0.0270943,265.48,265.42,0.02650715]
[1737726111085,3.767,265.47,265.43,3.7676]
[1737726111290,0.0270943,265.48,265.42,0.02650715]
[1737726111489,0.0270943,265.48,265.43,3.7675]
[1737726111690,0.0270943,265.48,265.42,0.02650715]
[1737726112290,8.85539615,265.43,265.07,8.85539615]
[1737726112481,11.3270943,265.48,265.19,8.85539615]
[1737726112482,8.85539615,265.39,265.19,8.85539615]
[1737726112688,2.62,265.38,265.2,3.6926]
[1737726113493,0.02432339,265.32,265.26,0.0278107]
[1737726113983,2.44991833,265.31,265.26,0.0278107]
[1737726114187,0.02432339,265.32,265.26,0.0278107]
[1737726114188,2.44991833,265.3,265.26,0.0278107]
[1737726114389,2.44991833,265.29,265.26,0.0278107]
[1737726114588,0.94227628,265.28,265.26,0.0278107]
[1737726114787,0.02432339,265.32,265.26,0.0278107]
[1737726114990,1.50743032,265.31,265.26,0.0278107]
[1737726115293,1.50742781,265.3,265.26,0.0278107]
[1737726115591,1.50742781,265.29,265.26,0.0278107]
[1737726115793,1.50742781,265.28,265.26,3.7978107]
[1737726115985,1.50760992,265.27,265.26,0.0278107]
[1737726116188,0.02432339,265.32,265.26,0.0278107]
[1737726116383,1.50754797,265.31,265.26,0.0278107]
[1737726116589,1.50754797,265.3,265.26,0.0278107]
[1737726116793,1.50754797,265.29,265.26,0.0278107]
[1737726116985,1.50754797,265.28,265.26,0.0278107]
[1737726117189,1.50754797,265.27,265.26,3.7978107]
[1737726122293,1.50754797,265.27,265.26,0.0278107]
[1737726123300,1.50754797,265.27,265.26,0.00381336]
[1737726123497,1.5078365,265.27,265.26,0.00381336]
[1737726125603,1.50787701,265.27,265.26,0.00381336]
[1737726126000,1.50807158,265.27,265.26,0.00381336]
[1737726126802,2.45066985,265.27,265.26,0.00381336]
[1737726127605,6.22056985,265.27,265.26,0.00381336]
[1737726127809,2.45066985,265.27,265.26,0.00381336]
[1737726128013,2.45066985,265.27,265.26,3.77381336]
[1737726128203,0.94259827,265.27,265.26,3.77381336]
[1737726128709,0.86605342,265.27,265.26,3.77381336]
[1737726129209,0.02432339,265.32,265.3,3.7694]
[1737726130513,0.02432339,265.32,265.31,3.7693]
[1737726138016,0.02432339,265.32,265.26,0.00381336]
[1737726138908,3.79352339,265.32,265.28,3.7696]
[1737726139108,0.02432339,265.32,265.26,0.00381336]
[1737726139514,0.02432339,265.32,265.31,3.7693]
[1737726143016,0.02432339,265.32,265.26,0.00381336]
[1737726143411,0.94243824,265.31,265.26,0.00381336]
[1737726143619,0.94243824,265.3,265.26,0.00381336]
[1737726143816,0.94243824,265.29,265.26,0.00381336]
[1737726144017,0.94243824,265.28,265.26,0.00381336]
[1737726144220,0.94242075,265.27,265.26,3.77381336]
[1737726144818,0.94242767,265.27,265.26,3.77381336]
[1737726148319,0.94242767,265.27,265.26,0.00381336]
[1737726148623,4.71232767,265.27,265.26,0.00381336]
[1737726150425,0.94261958,265.27,265.26,0.00381336]
[1737726151025,0.94252624,265.27,265.26,3.77381336]
[1737726152222,0.02432339,265.32,265.31,3.7693]
[1737726157631,0.02432339,265.32,265.26,0.00381336]
[1737726158325,3.7696,265.29,265.26,0.00381336]
[1737726158528,0.02432339,265.32,265.26,0.00381336]
[1737726158829,3.7694,265.31,265.26,0.00381336]
[1737726159029,0.02432339,265.32,265.26,0.00381336]
[1737726159532,3.7699,265.27,265.26,0.00381336]
[1737726162339,3.7701,265.25,265.21,42.85467402]